bitfinex/quotes_ETHUSD_20240607
["timestamp","ask_amount","ask_price","bid_price","bid_amount"]
[1717773408117,2.263,3815.9,3815.8,0.07229953]
[1717773408318,2.263,3815.9,3815.7,2.62075]
[1717773408551,2.263,3815.9,3815.8,0.07229953]
[1717773408926,2.263,3815.9,3815.7,2.62075]
[1717773409127,2.263,3815.9,3815.8,0.07229953]
[1717773409444,2.263,3815.9,3815.7,2.62075]
[1717773409822,2.263,3815.9,3815.8,0.07229953]
[1717773410155,2.263,3815.9,3815.7,2.62075]
[1717773410339,2.263,3815.9,3815.8,0.07227197]
[1717773410725,2.263,3815.9,3815.7,2.62075]
[1717773410926,2.263,3815.9,3815.8,0.07227197]
[1717773411430,2.263,3815.9,3815.7,2.62075]
[1717773411630,2.263,3815.9,3815.8,0.07229953]
[1717773412037,2.263,3815.9,3815.7,2.62075]
[1717773412269,2.263,3815.9,3815.8,0.07229953]
[1717773412616,2.263,3815.9,3815.7,2.62075]
[1717773412782,2.263,3815.9,3815.8,0.07229953]
[1717773413252,2.263,3815.9,3815.7,2.62075]
[1717773413448,2.263,3815.9,3815.8,0.07229953]
[1717773413763,2.263,3815.9,3815.4,2.62089]
[1717773413968,2.263,3815.9,3815.8,0.07229953]
[1717773414141,2.263,3815.9,3815.4,2.62089]
[1717773414345,2.263,3815.9,3815.8,0.07229953]
[1717773414556,2.263,3815.9,3815.4,2.62089]
[1717773414879,2.263,3815.9,3815.8,0.07229953]
[1717773415032,2.263,3815.9,3815.4,2.62089]
[1717773415235,2.263,3815.9,3815.8,0.07229953]
[1717773415466,2.813,3815.9,3815.4,2.62089]
[1717773415983,2.813,3815.9,3815.5,0.7813973]
[1717773416670,0.55,3815.9,3815.7,0.709]
[1717773416979,0.55,3816.1,3815.8,0.07235678]
[1717773417469,0.55,3816.1,3815.6,3.32981]
[1717773417647,0.55,3816.1,3815.9,0.0724387]
[1717773417835,1.10546517,3816.1,3815.6,3.32981]
[1717773418030,1.10546517,3816.1,3816.0,0.07240611]
[1717773418245,1.67215297,3816.1,3815.6,2.62081]
[1717773418435,1.67215297,3816.1,3816.0,0.0723531]
[1717773418646,1.67215297,3816.1,3815.6,2.62081]
[1717773418871,1.1166878,3816.1,3816.0,0.0723531]
[1717773419046,1.1166878,3816.1,3815.6,2.62081]
[1717773419255,0.55,3816.1,3815.6,2.62081]
[1717773419639,0.55,3816.1,3815.7,0.07245086]
[1717773420991,2.3226,3815.9,3815.7,0.07245086]
[1717773421173,1.099315,3815.8,3815.7,0.07245086]
[1717773421371,3.719995,3815.8,3815.3,3.32997]
[1717773421557,6.5569828,3815.8,3815.7,0.07007607]
[1717773421857,2.62082,3815.6,3815.2,0.709]
[1717773422181,0.55,3815.5,3815.2,0.709]
[1717773422744,0.55,3815.5,3815.4,0.709]
[1717773425067,2.2703,3815.8,3815.4,0.709]
[1717773425248,2.2703,3815.8,3814.7,4.87668]
[1717773425464,2.2703,3815.8,3815.4,0.709]
[1717773426089,2.62057,3816.0,3815.4,0.709]
[1717773426270,0.55,3815.9,3815.4,0.709]
[1717773426803,0.5666878,3816.3,3815.9,2.62061]
[1717773427112,2.4915,3816.4,3815.9,2.62061]
[1717773427113,2.4915,3816.4,3816.0,0.709]
[1717773429406,2.4915,3816.4,3815.9,3.32961]
[1717773432995,2.4915,3816.4,3815.9,2.62061]
[1717773433316,0.55,3816.3,3816.0,0.06991258]
[1717773436859,0.55,3816.3,3816.1,0.709]
[1717773437191,0.55,3816.5,3816.2,0.06984741]
[1717773438000,1.47225378,3816.5,3816.2,0.06984741]
[1717773438490,1.47225378,3816.5,3815.9,3.32961]
[1717773438717,0.55,3816.5,3815.9,3.32961]
[1717773438867,0.55,3816.5,3816.0,0.06991895]
[1717773439065,4.8772,3816.4,3816.0,0.06991895]
[1717773439267,2.6204,3816.2,3816.0,0.06991895]
[1717773439498,2.2698,3815.9,3815.3,2.62097]
[1717773439996,0.55,3815.8,3815.3,2.62097]
[1717773440208,0.55,3815.8,3815.3,3.32997]
[1717773440410,0.55,3815.8,3815.3,2.62097]
[1717773440608,0.55,3815.8,3815.3,3.32997]
[1717773442113,0.55,3815.8,3815.3,2.62097]
[1717773442509,0.55,3815.8,3814.8,2.4806]
[1717773442886,0.55,3815.8,3815.3,2.62097]
[1717773443117,0.544034,3815.7,3815.3,2.62097]
[1717773443415,0.55,3815.6,3815.3,2.62097]
[1717773444723,0.544034,3815.7,3815.3,2.62097]
[1717773444947,0.55,3815.6,3815.3,2.62097]
[1717773445238,0.55,3815.8,3815.3,2.62097]
[1717773445391,0.56671077,3816.1,3815.7,2.62071]
[1717773445581,3.18688077,3816.6,3815.7,2.62071]
[1717773445794,1.531817,3816.5,3815.7,2.62071]
[1717773446725,0.55,3816.4,3815.7,2.62071]
[1717773448218,0.55,3816.4,3815.8,0.06999685]
[1717773448931,2.315,3816.1,3815.8,0.06999685]
[1717773449162,2.62076,3815.7,3814.8,2.62131]
[1717773449358,2.62076,3815.7,3814.9,0.07022024]
[1717773449494,0.55,3815.6,3814.9,0.07022024]
[1717773450298,3.68083477,3816.0,3815.1,2.62115]
[1717773450603,1.14958348,3815.9,3815.2,0.07012243]
[1717773451005,2.62069,3815.8,3815.2,0.07012243]
[1717773451192,0.55,3815.7,3815.2,0.07012243]
[1717773454096,2.62084,3815.6,3815.2,0.07012243]
[1717773454297,0.55,3815.5,3814.8,4.88933]
[1717773454497,0.55,3815.5,3814.9,0.07022024]
[1717773454896,3.22023348,3815.9,3815.0,2.3289]
[1717773455105,0.55,3815.8,3815.1,0.07015503]
[1717773456436,0.55,3815.8,3815.2,2.62107]
[1717773456835,0.55,3815.8,3815.3,0.07008984]
[1717773457412,0.56667733,3816.0,3815.4,2.62094]
[1717773457620,2.62045,3816.2,3815.4,2.62094]
[1717773457815,0.55,3816.0,3815.5,0.07002465]
[1717773458195,3.17056,3816.0,3815.5,0.07002465]
[1717773458402,3.73723733,3816.0,3815.5,0.07002465]
[1717773458619,3.73723733,3816.0,3815.4,2.62094]
[1717773459025,3.7372535,3816.0,3815.4,2.62094]
[1717773459534,4.39684384,3816.0,3815.4,2.62094]
[1717773459840,2.6207,3815.8,3815.1,2.62111]
[1717773460148,0.55,3815.7,3815.2,0.0702221]
[1717773462055,0.55,3815.7,3815.4,0.709]
[1717773462474,0.55,3815.7,3815.5,0.07012431]
[1717773465558,0.55,3815.7,3815.6,0.07009172]
[1717773465761,0.98969838,3815.7,3815.4,0.709]
[1717773465925,0.98969838,3815.7,3815.5,0.07012431]
[1717773467035,0.98969838,3815.7,3815.4,0.709]
[1717773467236,0.98969838,3815.7,3815.6,0.07009172]
[1717773467436,0.98969838,3815.7,3815.5,0.07012431]
[1717773467662,0.98969838,3815.7,3815.6,0.07009172]
[1717773467963,0.98969838,3815.7,3815.4,0.709]
[1717773468174,2.3641,3815.5,3814.8,2.62132]
[1717773468326,0.55,3815.4,3815.1,0.709]
[1717773469659,3.17098,3815.4,3815.1,0.709]
[1717773474571,3.17098,3815.4,3813.8,9.72831407]
[1717773474572,2.2909,3815.3,3813.8,6.72831407]
[1717773474739,2.2909,3814.7,3814.1,0.709]
[1717773474931,2.2909,3814.7,3814.2,0.06611861]
[1717773474932,0.55,3814.6,3814.2,0.06611861]
[1717773475159,0.55,3814.6,3814.3,0.709]
[1717773475331,0.55,3814.6,3814.4,0.06605338]
[1717773476269,3.1715,3814.6,3814.4,0.06605338]
[1717773478563,2.62132,3814.9,3814.4,0.06605338]
[1717773478767,0.55,3814.8,3814.5,0.709]
[1717773478933,0.55,3814.8,3814.6,0.06598816]
[1717773479362,0.55,3814.8,3814.5,0.709]
[1717773479542,0.55,3814.8,3814.6,0.06598816]
[1717773479952,0.55,3814.8,3814.5,0.709]
[1717773480149,0.55,3814.8,3814.6,0.06598816]
[1717773480385,3.18800034,3815.2,3814.6,0.06598816]
[1717773480568,2.62093,3815.5,3815.1,0.709]
[1717773480931,3.18780034,3815.5,3815.1,0.709]
[1717773481136,3.18780034,3815.5,3814.9,0.709]
[1717773481640,3.18780034,3815.5,3814.8,0.709]
[1717773482473,3.18780034,3815.5,3814.8,3.33034]
[1717773482640,1.19960813,3815.4,3814.8,3.33034]
[1717773482842,1.19960813,3815.4,3814.2,2.2904]
[1717773482843,2.62103,3815.3,3814.9,0.06589034]
[1717773483161,2.62103,3815.3,3814.6,0.709]
[1717773483357,2.62103,3815.3,3814.7,0.06595555]
[1717773483538,3.39060045,3815.3,3814.7,0.06595555]
[1717773483739,3.39060045,3815.3,3814.8,0.709]
[1717773483939,3.39060045,3815.3,3814.9,0.06589034]
[1717773484152,3.39060045,3815.3,3814.8,0.709]
[1717773484488,3.39060045,3815.3,3814.9,0.06589034]
[1717773484855,3.39060045,3815.3,3814.8,0.709]
[1717773485315,3.39060045,3815.3,3814.9,0.06589034]
[1717773485692,3.39060045,3815.3,3814.8,0.709]
[1717773486090,3.39060045,3815.3,3814.9,0.06589034]
[1717773486359,2.62103,3815.3,3814.8,0.709]
[1717773486562,2.62103,3815.3,3814.9,0.06589034]
[1717773486769,2.62103,3815.3,3814.8,0.709]
[1717773487012,2.62103,3815.3,3814.9,0.06589034]
[1717773487163,2.62103,3815.3,3814.8,0.709]
[1717773487393,2.62103,3815.3,3815.0,0.709]
[1717773487564,2.62103,3815.3,3815.1,0.06582514]
[1717773487823,2.62103,3815.3,3814.9,0.709]
[1717773488107,2.62103,3815.3,3815.2,0.06579254]
[1717773488263,3.17103,3815.3,3814.9,0.709]
[1717773488471,3.17103,3815.3,3815.2,0.0658835]
[1717773488669,3.17103,3815.3,3814.9,0.709]
[1717773488868,3.17103,3815.3,3815.2,0.0658835]
[1717773489204,0.55,3815.3,3815.2,0.0658835]
[1717773489499,0.55,3815.5,3814.9,0.709]
[1717773490104,2.62086,3815.6,3815.1,0.709]
[1717773490400,2.62086,3815.6,3815.2,0.0658835]
[1717773490604,2.93962088,3815.6,3815.2,0.0658835]
[1717773491231,2.93962088,3815.6,3814.9,2.62127]
[1717773491418,2.93962088,3815.6,3815.3,0.06585091]
[1717773491595,2.93962088,3815.6,3814.9,3.33027]
[1717773491815,2.93962088,3815.6,3815.0,0.06594871]
[1717773492466,2.93962088,3815.6,3815.1,0.709]
[1717773492906,2.93962088,3815.6,3815.2,0.0658835]
[1717773497318,2.62098,3815.4,3815.2,0.0658835]
[1717773497486,0.55,3815.3,3815.2,0.0658835]
[1717773497791,0.55,3815.3,3815.2,0.06595542]
[1717773497988,0.55,3815.3,3814.9,0.709]
[1717773499996,0.56672057,3815.6,3815.2,0.709]
[1717773500195,0.56672057,3815.9,3815.4,0.709]
[1717773500425,0.56672057,3815.9,3815.5,0.0658809]
[1717773500630,2.6206,3816.0,3815.5,0.0658809]
[1717773500932,2.6206,3816.0,3815.4,0.709]
[1717773500933,0.31872923,3815.9,3815.4,0.709]
[1717773501744,0.55,3815.8,3815.4,0.709]
[1717773502794,2.6206,3816.0,3815.6,0.709]
[1717773503111,3.18708226,3816.3,3815.8,0.709]
[1717773503290,0.55,3816.2,3815.8,0.709]
[1717773503624,0.55,3816.2,3815.9,0.06571246]
[1717773503924,0.55,3816.2,3815.8,0.709]
[1717773504238,0.55,3816.2,3815.9,0.06571246]
[1717773504602,0.55,3816.2,3815.8,0.709]
[1717773504804,0.55,3816.2,3815.9,0.06571246]
[1717773505015,0.55,3816.2,3815.8,0.709]
[1717773505358,0.55,3816.2,3815.9,0.06571246]
[1717773505635,0.55,3816.2,3815.7,0.709]
[1717773506004,0.55,3816.2,3815.8,0.06574505]
[1717773506204,0.55,3816.2,3815.7,0.709]
[1717773506519,0.55,3816.2,3815.9,0.709]
[1717773506890,0.55,3816.2,3816.0,0.06567988]
[1717773507095,0.55,3816.5,3816.0,0.06567988]
[1717773507391,0.566136,3816.4,3816.0,0.06567988]
[1717773507618,0.55,3816.3,3816.0,0.06567988]
[1717773507791,0.55,3816.3,3815.8,2.62067]
[1717773508608,0.55,3816.3,3815.9,0.06571246]
[1717773509003,0.55,3816.3,3815.7,0.709]
[1717773509333,0.55,3816.3,3815.8,0.06574505]
[1717773509699,0.55,3816.3,3815.7,0.709]
[1717773509912,0.55,3816.3,3815.9,0.06571246]
[1717773510117,0.55,3816.3,3815.8,0.06574505]
[1717773510461,0.55,3816.3,3815.9,0.06559823]
[1717773510956,0.55,3816.3,3815.7,3.32973]
[1717773511636,0.55,3816.3,3815.8,0.06563082]
[1717773512020,0.55,3816.3,3815.7,3.32973]
[1717773512222,0.55,3816.3,3815.9,0.709]
[1717773512421,0.55,3816.3,3816.0,0.06556564]
[1717773512655,0.55,3816.3,3815.7,3.32973]
[1717773512870,0.55,3816.3,3816.1,0.06553306]
[1717773513155,0.55,3816.3,3816.2,0.06550048]
[1717773513363,0.55,3816.3,3815.9,0.709]
[1717773513716,2.62012,3816.7,3816.1,0.709]
[1717773513915,0.56664613,3816.8,3816.3,0.709]
[1717773514175,2.4786,3816.9,3816.3,0.709]
[1717773514361,2.4786,3816.9,3816.4,0.06538244]
[1717773514521,2.4786,3816.9,3816.3,0.709]
[1717773514739,0.509851,3816.8,3816.3,0.709]
[1717773515056,3.129851,3816.8,3816.4,0.06538244]
[1717773515462,3.129851,3816.8,3816.1,0.709]
[1717773515676,3.129851,3816.8,3816.5,0.06534986]
[1717773515833,3.129851,3816.8,3816.0,2.2587]
[1717773516165,2.4786,3816.9,3816.0,3.32949]
[1717773516166,2.62014,3816.6,3816.0,3.32949]
[1717773516487,0.55,3816.5,3816.0,3.32949]
[1717773518510,0.55,3816.5,3816.0,2.62049]
[1717773518683,0.55,3816.5,3816.1,0.709]
[1717773519329,0.5665799,3816.8,3816.7,5.24012]
[1717773519616,0.5665799,3816.8,3816.7,5.78986]
[1717773519904,2.61919,3818.0,3817.0,2.61985]
[1717773519905,2.4633,3817.9,3817.0,2.61985]
[1717773520118,2.4633,3817.9,3817.4,0.709]
[1717773520273,0.508249,3817.8,3817.3,0.709]
[1717773521022,0.55,3817.7,3817.3,0.709]
[1717773522199,0.55,3817.7,3817.5,0.709]
[1717773522973,0.55,3817.7,3817.6,0.0644229]
[1717773524319,1.1640739,3817.7,3817.6,0.0644229]
[1717773526408,2.8644,3817.7,3817.6,0.0644229]
[1717773526723,2.61947,3817.6,3816.9,2.6199]
[1717773526897,0.55,3817.5,3816.9,2.6199]
[1717773527088,0.55,3817.5,3816.9,3.3289]
[1717773527414,0.548387,3817.4,3816.9,3.3289]
[1717773527609,0.55,3817.3,3816.9,0.709]
[1717773527912,0.55,3817.3,3816.6,2.6201]
[1717773527913,2.61973,3817.2,3816.6,2.6201]
[1717773528115,0.55,3817.1,3816.7,0.709]
[1717773528413,0.55,3817.1,3816.6,2.6201]
[1717773528573,0.55,3817.1,3816.7,0.709]
[1717773528778,0.9218117,3817.1,3816.6,2.6201]
[1717773529004,0.9218117,3817.1,3816.7,0.709]
[1717773529888,0.9218117,3817.1,3816.3,2.6203]
[1717773530215,2.62006,3816.8,3815.9,2.62059]
[1717773530428,1.047436,3816.7,3816.2,0.709]
[1717773531140,1.047436,3816.7,3816.4,0.709]
[1717773531794,0.55,3816.7,3816.4,0.709]
[1717773532008,0.55,3816.7,3816.6,0.709]
[1717773532617,0.55,3816.7,3816.1,2.62043]
[1717773532814,0.55,3816.7,3816.5,0.709]
[1717773534952,0.55,3816.7,3816.1,2.62043]
[1717773535150,0.55,3816.7,3816.4,0.709]
[1717773537057,0.55,3816.7,3816.6,0.709]
[1717773538042,0.55,3816.7,3816.6,0.77390709]
[1717773540361,0.55,3816.7,3816.6,0.06490709]
[1717773540727,0.867006,3816.7,3816.1,2.62043]
[1717773540950,0.867006,3816.7,3816.6,0.06490709]
[1717773541254,0.55,3816.7,3816.3,0.709]
[1717773541477,0.55,3816.7,3816.4,0.06497224]
[1717773543561,3.18632367,3817.2,3816.5,0.709]
[1717773543862,2.61976,3817.2,3816.9,0.709]
[1717773544245,2.4698,3817.3,3817.0,0.06485923]
[1717773544438,2.61955,3817.5,3817.0,0.06485923]
[1717773544656,3.17525675,3817.5,3817.1,0.709]
[1717773544967,3.18588367,3817.8,3817.3,0.709]
[1717773545149,2.61932,3817.8,3817.5,0.709]
[1717773546161,2.61932,3817.8,3817.3,0.709]
[1717773546442,1.06157236,3817.7,3817.3,0.709]
[1717773548194,2.61932,3817.8,3817.3,0.709]
[1717773548402,0.55,3817.7,3817.3,0.709]
[1717773551089,2.61945,3817.6,3817.0,2.6198]
[1717773551288,2.61945,3817.6,3817.1,0.709]
[1717773551448,2.61945,3817.6,3817.1,0.77364911]
[1717773551646,2.61945,3817.6,3817.1,0.709]
[1717773551849,2.3418,3817.5,3817.1,0.709]
[1717773552094,2.61959,3817.4,3816.7,2.62005]
[1717773552256,2.61959,3817.4,3816.2,2.2597]
[1717773552257,2.61973,3817.2,3816.6,0.709]
[1717773552450,2.61973,3817.2,3816.7,0.06477939]
[1717773553559,2.61988,3817.0,3816.7,0.06477939]
[1717773553985,2.61988,3817.0,3816.4,2.62022]
[1717773554295,2.61988,3817.0,3816.5,0.709]
[1717773554469,2.61988,3817.0,3816.5,0.77394599]
[1717773554979,2.62002,3816.8,3816.5,0.06494599]
[1717773555402,2.62022,3816.5,3815.7,2.62072]
[1717773555949,0.55,3816.4,3815.7,2.62072]
[1717773558418,2.62036,3816.3,3815.7,2.62072]
[1717773560052,2.62036,3816.3,3815.4,5.04212]
[1717773561410,2.62036,3816.3,3815.6,2.62078]
[1717773563581,0.56642724,3817.0,3815.8,2.62064]
[1717773563582,2.62014,3816.6,3815.8,2.62064]
[1717773565146,2.61996,3816.9,3816.0,2.62051]
[1717773565329,0.55,3816.8,3816.0,2.62051]
[1717773567277,0.55,3816.8,3816.2,2.62038]
[1717773568266,2.62008,3816.7,3816.3,0.06510206]
[1717773568459,2.62008,3816.7,3815.9,2.62056]
[1717773568763,2.62008,3816.7,3816.0,0.06525267]
[1717773572838,2.62021,3816.5,3816.0,0.06525267]
[1717773573065,2.3295,3816.4,3816.0,0.06525267]
[1717773573242,3.17035,3816.3,3815.6,2.62076]
[1717773573653,3.17035,3816.3,3815.7,0.06535044]
[1717773576020,2.62062,3815.9,3815.7,0.06535044]
[1717773576501,0.55,3815.8,3815.0,2.6212]
[1717773576810,0.867062,3815.8,3815.0,2.6212]
[1717773577007,2.62062,3815.9,3815.2,2.62106]
[1717773577707,2.62078,3815.7,3814.9,2.62126]
[1717773579212,2.62092,3815.5,3814.9,2.62126]
[1717773579394,2.62092,3815.5,3814.6,2.4825]
[1717773579395,4.99032,3815.5,3814.6,5.10399]
[1717773580107,4.99032,3815.5,3814.6,5.784489]
[1717773581730,4.99032,3815.5,3814.8,2.62133]
[1717773583004,3.17068,3815.8,3815.0,2.62117]
[1717773583399,3.17068,3815.8,3815.1,0.05919064]
[1717773583866,3.17068,3815.8,3815.4,0.709]
[1717773585107,3.17068,3815.8,3815.2,2.62107]
[1717773585308,3.17068,3815.8,3815.6,0.709]
[1717773585672,4.90381,3816.1,3815.7,0.05897608]
[1717773585872,4.90381,3816.1,3815.6,0.709]
[1717773586072,4.90381,3816.1,3815.7,0.05897608]
[1717773586705,4.90381,3816.1,3815.8,0.709]
[1717773586889,4.90381,3816.1,3815.9,0.0589109]
[1717773587319,2.6203,3816.4,3815.9,0.0589109]
[1717773587521,2.6203,3816.4,3816.0,0.709]
[1717773587817,0.5666235,3816.8,3816.3,0.709]
[1717773587818,3.0582235,3816.8,3816.3,0.709]
[1717773588017,2.4916,3816.8,3816.3,0.709]
[1717773588323,2.4916,3816.8,3816.5,0.709]
[1717773588726,2.4916,3816.8,3815.8,2.3088]
[1717773588727,2.47,3817.2,3816.7,0.709]
[1717773589130,2.47,3817.2,3816.8,0.05846796]
[1717773589554,0.5664834,3817.8,3816.9,2.61989]
[1717773589846,3.26040954,3817.7,3817.1,0.709]
[1717773589980,3.26040954,3817.7,3817.0,0.0583459]
[1717773590179,3.26040954,3817.7,3817.2,0.05828076]
[1717773590424,3.26040954,3817.7,3817.1,0.05831333]
[1717773590628,0.38268929,3817.6,3816.9,2.61989]
[1717773590992,0.38268929,3817.6,3817.0,0.0583459]
[1717773591402,0.55,3817.5,3817.0,0.0583459]
[1717773591906,0.55,3817.5,3817.1,0.05831333]
[1717773592108,0.55,3817.5,3816.9,2.61989]
[1717773592295,1.26930988,3817.5,3817.0,0.0583459]
[1717773592501,1.26930988,3817.5,3816.9,2.61989]
[1717773592675,1.26930988,3817.5,3817.0,0.0583459]
[1717773592881,1.26930988,3817.5,3816.9,2.61989]
[1717773593099,1.26930988,3817.5,3817.0,0.0583459]
[1717773593389,1.26930988,3817.5,3816.9,2.61989]
[1717773593617,3.34671892,3817.4,3817.1,0.05831333]
[1717773593821,0.55,3817.3,3817.0,0.0583459]
[1717773594145,0.55,3817.3,3817.1,0.05831333]
[1717773594504,0.55,3817.3,3816.5,2.62014]
[1717773594705,0.55,3817.3,3816.6,0.05847618]
[1717773595095,1.27794082,3817.3,3816.6,0.05847618]
[1717773597827,3.74314082,3817.3,3816.6,0.05847618]
[1717773599693,2.61973,3817.2,3816.6,0.05847618]
[1717773600018,0.55,3817.1,3816.6,0.05847618]
[1717773602147,2.61987,3817.0,3816.6,0.05847618]
[1717773602329,0.316987,3816.9,3816.6,0.05847618]
[1717773602501,0.316987,3816.9,3816.2,2.62037]
[1717773602697,2.61987,3817.0,3816.3,0.05833143]
[1717773604539,2.4543,3816.8,3816.3,0.05833143]
[1717773605041,2.4543,3816.8,3815.9,2.62057]
[1717773605042,0.55,3816.7,3815.9,2.62057]
[1717773605335,2.62016,3816.6,3815.9,2.62057]
[1717773605508,2.62016,3816.6,3816.0,0.32048618]
[1717773607350,2.62016,3816.6,3816.1,2.62047]
[1717773607553,0.55,3816.7,3816.1,2.67886659]
[1717773608602,2.4543,3816.8,3816.1,2.67886659]
[1717773608844,2.61997,3816.9,3816.3,2.6203]
[1717773609202,2.61997,3816.9,3816.4,0.05829885]
[1717773611259,2.62008,3816.7,3816.4,0.05829885]
[1717773611420,0.55,3816.6,3816.4,0.05829885]
[1717773611614,0.55,3816.6,3816.0,2.62049]
[1717773611962,2.6202,3816.5,3816.0,2.62049]
[1717773613377,2.6202,3816.5,3816.1,0.05845983]
[1717773613747,2.6202,3816.5,3815.7,2.6207]
[1717773613936,2.62034,3816.3,3816.2,0.05842724]
[1717773614182,2.62034,3816.3,3815.4,2.62091]
[1717773614384,0.55,3816.2,3815.4,2.62091]
[1717773614686,2.62048,3816.1,3815.4,2.62091]
[1717773616851,0.55,3816.2,3815.0,1.7]
[1717773616852,2.62064,3815.9,3815.1,2.62112]
[1717773617070,2.62064,3815.9,3815.1,3.69351141]
[1717773617271,2.4493,3815.8,3815.1,3.69351141]
[1717773618363,2.4493,3815.8,3815.1,2.62112]
[1717773619463,2.62076,3815.7,3815.1,2.62112]
[1717773620368,2.62076,3815.7,3814.8,2.62132]
[1717773622282,2.62091,3815.5,3814.8,2.62132]
[1717773624596,2.4503,3815.4,3814.8,2.62132]
[1717773624959,2.4503,3815.4,3814.9,0.05926006]
[1717773625163,2.4503,3815.4,3814.8,2.62132]
[1717773625505,2.4503,3815.4,3815.0,0.0592148]
[1717773625730,2.4503,3815.4,3814.9,0.05924741]
[1717773625993,2.62103,3815.3,3814.5,2.62153]
[1717773626158,2.62103,3815.3,3815.0,0.0592148]
[1717773626354,2.62103,3815.3,3814.5,2.62153]
[1717773626592,2.62103,3815.3,3815.1,0.0591822]
[1717773626792,2.62103,3815.3,3814.5,2.62153]
[1717773627097,2.62103,3815.3,3815.2,0.0591496]
[1717773627297,2.62103,3815.3,3814.5,2.62153]
[1717773627481,2.62103,3815.3,3815.2,0.0591496]
[1717773628097,2.62103,3815.3,3814.6,0.262153]
[1717773628296,2.62103,3815.3,3815.2,0.0591496]
[1717773628569,0.75,3815.3,3813.6,0.1355333]
[1717773628684,2.62204,3813.9,3813.6,0.1355333]
[1717773628989,2.6217,3814.4,3813.6,0.1355333]
[1717773629302,2.3093,3814.6,3813.6,0.1355333]
[1717773629717,2.62191,3814.1,3813.6,0.1355333]
[1717773629999,2.62191,3814.1,3813.7,0.04624031]
[1717773631865,2.62191,3814.1,3813.7,0.07913702]
[1717773632221,2.62154,3814.6,3813.7,0.07913702]
[1717773632323,7.43,3814.9,3813.8,2.62204]
[1717773632519,2.62121,3815.1,3813.9,0.07910353]
[1717773632759,2.62121,3815.1,3814.0,2.65338738]
[1717773632918,2.62121,3815.1,3814.1,2.4586]
[1717773633127,2.62121,3815.1,3814.2,0.07900309]
[1717773633352,2.62121,3815.1,3814.3,0.51595031]
[1717773633521,2.62087,3815.6,3814.4,2.62163]
[1717773633733,2.62087,3815.6,3814.5,0.07890266]
[1717773634872,2.62106,3815.3,3814.5,0.07890266]
[1717773636283,2.62125,3815.0,3814.5,0.07890266]
[1717773636567,2.62125,3815.0,3814.6,0.07886918]
[1717773636736,2.62125,3815.0,3814.1,2.4586]
[1717773637067,2.62125,3815.0,3814.2,0.07900309]
[1717773637257,2.62099,3815.4,3814.3,2.6217]
[1717773637568,2.62099,3815.4,3814.4,0.07893613]
[1717773638157,2.62118,3815.1,3814.4,0.07893613]
[1717773639865,2.62136,3814.9,3814.4,0.07893613]
[1717773640037,0.262136,3814.8,3814.4,0.07893613]
[1717773640234,2.62136,3814.9,3814.0,2.62189]
[1717773640433,2.62136,3814.9,3814.5,0.07898052]
[1717773640630,2.62136,3814.9,3814.0,2.62189]
[1717773640830,2.62136,3814.9,3814.6,0.07894705]
[1717773641067,2.62136,3814.9,3814.0,2.62189]
[1717773641259,2.62136,3814.9,3814.7,0.07891358]
[1717773641464,2.62111,3815.2,3814.2,2.62171]
[1717773641638,2.62111,3815.2,3814.8,0.07888011]
[1717773641834,2.62111,3815.2,3814.2,2.62171]
[1717773642077,2.62111,3815.2,3814.9,0.07884664]
[1717773642289,2.62111,3815.2,3814.2,2.62171]
[1717773642575,2.62111,3815.2,3814.3,0.07904748]
[1717773644089,2.62161,3814.5,3814.3,0.07904748]
[1717773644250,0.262161,3814.4,3814.3,0.07904748]
[1717773644585,2.6218,3814.2,3813.6,0.1355333]
[1717773644915,2.62153,3814.6,3813.7,2.3841]
[1717773645354,2.62177,3814.3,3813.6,0.1355333]
[1717773653970,2.62177,3814.3,3813.2,2.62243]
[1717773654214,2.62177,3814.3,3813.3,0.60325742]
[1717773655401,2.62177,3814.3,3813.4,2.6223]
[1717773656924,0.56693701,3814.9,3814.1,1.7]
[1717773657126,2.6205,3816.1,3814.4,2.62158]
[1717773657127,2.62089,3815.5,3814.4,2.62158]
[1717773657291,2.62089,3815.5,3814.4,3.289098]
[1717773658135,2.62089,3815.5,3814.6,2.62149]
[1717773658489,2.62089,3815.5,3814.7,0.05832739]
[1717773660039,2.62105,3815.3,3814.7,0.05832739]
[1717773660819,2.62119,3815.1,3814.7,0.05832739]
[1717773661012,2.6213,3814.9,3814.0,2.62188]
[1717773661213,2.6213,3814.9,3814.8,0.05704122]
[1717773661417,2.6213,3814.9,3814.0,2.62188]
[1717773661616,2.6213,3814.9,3814.8,0.05704332]
[1717773661816,2.6213,3814.9,3814.0,2.62188]
[1717773662001,2.6213,3814.9,3814.8,0.05704332]
[1717773662207,2.6213,3814.9,3814.2,2.62177]
[1717773662432,2.6213,3814.9,3814.8,0.05704332]
[1717773662742,2.6213,3814.9,3813.9,2.62194]
[1717773663341,2.62159,3814.5,3814.0,0.05733847]
[1717773663825,2.62159,3814.5,3814.1,0.05735125]
[1717773664005,2.62159,3814.5,3813.6,2.62218]
[1717773664205,2.62159,3814.5,3814.2,0.05731777]
[1717773664409,2.62159,3814.5,3813.6,2.62218]
[1717773664644,2.62159,3814.5,3814.3,0.05728429]
[1717773664826,2.62159,3814.5,3813.8,2.62205]
[1717773664995,2.62159,3814.5,3814.4,0.05725081]
[1717773665199,2.62159,3814.5,3813.8,2.62205]
[1717773665437,2.62159,3814.5,3814.4,0.05725081]